fUSD/lending_fUSD_20240403
["ID","MTS","AMOUNT","RATE_DAILY","PERIOD"]
[321426394,1712182300229,-525.45438206,0.00055068,120]
[321426395,1712182300238,-500.0,0.00055068,120]
[321426396,1712182300248,-507.28304077,0.00055068,120]
[321426397,1712182300258,-500.0,0.00055068,120]
[321426398,1712182300267,-500.0,0.00055068,120]
[321426399,1712182300277,-500.0,0.00055068,120]
[321426400,1712182300287,-500.0,0.00055068,120]
[321426401,1712182300296,-500.0,0.00055068,120]
[321426402,1712182300306,-500.0,0.00055068,120]
[321426403,1712182300316,-526.13017873,0.00055068,120]
[321426404,1712182300326,-500.0,0.00055068,120]
[321426405,1712182300335,-500.0,0.00055068,120]
[321426406,1712182300344,-941.5,0.00055068,120]
[321426407,1712182300354,-500.0,0.00055068,120]
[321426408,1712182300364,-500.0,0.00055068,120]
[321426409,1712182300373,-500.0,0.00055068,120]
[321426410,1712182300383,-500.0,0.00055068,120]
[321426411,1712182300392,-500.0,0.00055068,120]
[321426412,1712182300402,-500.0,0.00055068,120]
[321426413,1712182300412,-501.4736451,0.00055068,120]
[321426414,1712182300421,-500.0,0.00055068,120]
[321426415,1712182300431,-518.05015587,0.00055068,120]
[321426416,1712182300442,-531.76,0.00055068,120]
[321426417,1712182300451,-500.0,0.00055068,120]
[321426418,1712182300460,-751.45,0.00055068,120]
[321426419,1712182300470,-500.0,0.00055068,120]
[321426420,1712182300479,-500.0,0.00055068,120]
[321426421,1712182300489,-500.0,0.00055068,120]
[321426422,1712182300498,-500.0,0.00055068,120]
[321426423,1712182300507,-500.0,0.00055068,120]
[321426424,1712182300516,-505.77143171,0.00055068,120]
[321426425,1712182300525,-500.0,0.00055068,120]
[321426426,1712182300533,-500.0,0.00055068,120]
[321426427,1712182300542,-500.0,0.00055068,120]
[321426428,1712182300552,-500.0,0.00055068,120]
[321426429,1712182300561,-809.69,0.00055068,120]
[321426430,1712182300570,-500.0,0.00055068,120]
[321426431,1712182300580,-500.0,0.00055068,120]
[321426432,1712182300589,-658.04,0.00055068,120]
[321426433,1712182300602,-734.72,0.00055068,120]
[321426434,1712182300611,-500.0,0.00055068,120]
[321426435,1712182300621,-581.55210061,0.00055068,120]
[321426436,1712182300631,-500.0,0.00055068,120]
[321426437,1712182300641,-854.0,0.00055068,120]
[321426438,1712182300651,-500.0,0.00055068,120]
[321426439,1712182300660,-500.0,0.00055068,120]
[321426440,1712182300669,-500.0,0.00055068,120]
[321426441,1712182300680,-499.93966774,0.00055068,120]
[321426442,1712182300691,-500.0,0.00055068,120]
[321426443,1712182300701,-500.0,0.00055068,120]
[321426444,1712182300711,-500.0,0.00055068,120]
[321426445,1712182300720,-500.0,0.00055068,120]
[321426446,1712182300730,-500.0,0.00055068,120]
[321426447,1712182300739,-675.44,0.00055068,120]
[321426448,1712182300749,-585.36,0.00055068,120]
[321426449,1712182300758,-500.0,0.00055068,120]
[321426450,1712182300768,-500.0,0.00055068,120]
[321426451,1712182300777,-500.0,0.00055068,120]
[321426452,1712182300787,-500.0,0.00055068,120]
[321426453,1712182300796,-500.0,0.00055068,120]
[321426454,1712182300805,-500.0,0.00055068,120]
[321426455,1712182300814,-606.8458915,0.00055068,120]
[321426456,1712182300824,-408.03685875,0.00055068,120]
[321426457,1712182300834,-500.0,0.00055068,120]
[321426458,1712182300844,-500.0,0.00055068,120]
[321426459,1712182300853,-500.0,0.00055068,120]
[321426460,1712182300862,-500.0,0.00055068,120]
[321426461,1712182300872,-500.0,0.00055068,120]
[321426462,1712182300881,-500.0,0.00055068,120]
[321426463,1712182300890,-500.0,0.00055068,120]
[321426464,1712182300899,-589.36944926,0.00055068,120]
[321426465,1712182300909,-547.47714468,0.00055068,120]
[321426466,1712182300918,-500.0,0.00055068,120]
[321426467,1712182300927,-600.0,0.00055068,2]
[321426468,1712182300937,-1657.99,0.00055068,30]
[321426469,1712182300947,-500.0,0.00055068,120]
[321426470,1712182300956,-500.0,0.00055068,120]
[321426471,1712182300965,-835.03,0.00055068,120]
[321426472,1712182300975,-500.0,0.00055068,120]
[321426473,1712182300985,-500.0,0.00055068,120]
[321426474,1712182300993,-500.0,0.00055068,120]
[321426475,1712182301003,-480.7072807,0.00055068,120]
[321426476,1712182301012,-749.89,0.00055068,120]
[321426477,1712182301022,-500.0,0.00055068,120]
[321426478,1712182301032,-16000.0,0.00055068,90]
[321426479,1712182301042,-539.18,0.00055068,120]
[321426480,1712182301052,-500.0,0.00055068,120]
[321426481,1712182301061,-500.0,0.00055068,120]
[321426482,1712182301071,-500.0,0.00055068,120]
[321426483,1712182301081,-503.8700193,0.00055068,120]
[321426484,1712182301091,-1985.0,0.00055068,120]
[321426485,1712182301101,-533.57913989,0.00055068,120]
[321426486,1712182301110,-500.0,0.00055068,120]
[321426487,1712182301120,-500.0,0.00055068,120]
[321426488,1712182301129,-510.42296223,0.00055068,120]
[321426489,1712182301139,-500.0,0.00055068,120]
[321426490,1712182301148,-500.0,0.00055068,120]
[321426491,1712182301158,-500.0,0.00055068,120]
[321426492,1712182301167,-1220.51,0.00055068,120]
[321426493,1712182301176,-500.0,0.00055068,2]
[321426494,1712182301187,-508.64,0.00055068,120]
[321426495,1712182301196,-503.64231859,0.00055068,120]
[321426496,1712182301205,-500.0,0.00055068,120]
[321426497,1712182301213,-511.24,0.00055068,120]
[321426498,1712182301224,-500.0,0.00055068,120]
[321426499,1712182301233,-337.6990871,0.00055068,120]
[321426500,1712182301242,-633.42,0.00055068,120]
[321426501,1712182301252,-704.66,0.00055068,120]
[321426502,1712182301261,-1220.19,0.00055068,120]
[321426503,1712182301270,-659.49,0.00055068,120]
[321426504,1712182301279,-1673.95,0.00055068,120]
[321426505,1712182301288,-500.0,0.00055068,120]
[321426506,1712182301298,-500.0,0.00055068,120]
[321426507,1712182301307,-965.12,0.00055068,120]
[321426508,1712182301317,-618.99941599,0.00055068,120]
[321426509,1712182301326,-935.91,0.00055068,120]
[321426510,1712182301335,-985.34,0.00055068,120]
[321426511,1712182301345,-625.0,0.00055068,120]
[321426512,1712182301354,-1009.55,0.00055068,120]
[321426513,1712182301363,-500.0,0.00055068,120]
[321426514,1712182301373,-500.0,0.00055068,120]
[321426515,1712182301383,-500.0,0.00055068,120]
[321426516,1712182301393,-705.27,0.00055068,120]
[321426517,1712182301403,-500.0,0.00055068,120]
[321426518,1712182301414,-500.0,0.00055068,120]
[321426519,1712182301423,-2000.0,0.00055068,30]
[321426520,1712182301433,-500.0,0.00055068,120]
[321426521,1712182301443,-1076.91,0.00055068,120]
[321426522,1712182301452,-1080.87,0.00055068,120]
[321426523,1712182301462,-500.0,0.00055068,120]
[321426524,1712182301471,-500.0,0.00055068,120]
[321426525,1712182301480,-500.0,0.00055068,120]
[321426526,1712182301490,-500.0,0.00055068,120]
[321426527,1712182301499,-500.0,0.00055068,120]
[321426528,1712182301509,-572.56782207,0.00055068,120]
[321426529,1712182301518,-553.5,0.00055068,120]
[321426530,1712182301527,-884.75,0.00055068,120]
[321426531,1712182301537,-1000.0,0.00055068,30]
[321426532,1712182301546,-500.0,0.00055068,120]
[321426533,1712182301555,-1092.2,0.00055068,120]
[321426534,1712182301565,-500.0,0.00055068,120]
[321426535,1712182301574,-897.02,0.00055068,120]
[321426536,1712182301584,-500.0,0.00055068,120]
[321426537,1712182301594,-500.0,0.00055068,120]
[321426538,1712182301608,-500.0,0.00055068,120]
[321426539,1712182301617,-592.63,0.00055068,120]
[321426540,1712182301627,-854.62,0.00055068,120]
[321426541,1712182301636,-1215.43,0.00055068,120]
[321426542,1712182301647,-500.0,0.00055068,120]
[321426543,1712182301657,-2461.51,0.00055068,120]
[321426544,1712182301666,-500.0,0.00055068,120]
[321426545,1712182301678,-500.0,0.00055068,120]
[321426546,1712182301689,-500.0,0.00055068,120]
[321426547,1712182301698,-1220.58,0.00055068,120]
[321426548,1712182301708,-500.0,0.00055068,120]
[321426549,1712182301717,-590.49,0.00055068,120]
[321426550,1712182301727,-500.0,0.00055068,120]
[321426551,1712182301737,-500.0,0.00055068,120]
[321426552,1712182301746,-500.0,0.00055068,120]
[321426553,1712182301756,-544.8439429,0.00055068,120]
[321426554,1712182301766,-500.0,0.00055068,120]
[321426555,1712182301775,-500.0,0.00055068,120]
[321426556,1712182301784,-865.98,0.00055068,120]
[321426557,1712182301794,-500.0,0.00055068,120]
[321426558,1712182301803,-500.0,0.00055068,120]
[321426559,1712182301812,-500.0,0.00055068,120]
[321426560,1712182301822,-636.23,0.00055068,80]
[321426561,1712182301831,-844.34,0.00055068,120]
[321426562,1712182301840,-550.62622301,0.00055068,120]
[321426563,1712182301850,-500.0,0.00055068,120]
[321426564,1712182301859,-515.42406241,0.00055068,120]
[321426565,1712182301868,-1064.18,0.00055068,120]
[321426566,1712182301878,-500.0,0.00055068,120]
[321426567,1712182301887,-500.0,0.00055068,120]
[321426568,1712182301897,-500.0,0.00055068,120]
[321426569,1712182301906,-500.0,0.00055068,120]
[321426570,1712182301915,-500.0,0.00055068,120]
[321426571,1712182301925,-500.0,0.00055068,120]
[321426572,1712182301934,-519.01344527,0.00055068,120]
[321426573,1712182301944,-500.0,0.00055068,120]
[321426574,1712182301953,-511.4,0.00055068,120]
[321426575,1712182301962,-642.8,0.00055068,120]
[321426576,1712182301972,-982.66,0.00055068,120]
[321426577,1712182301982,-665.67,0.00055068,120]
[321426578,1712182301991,-1176.41,0.00055068,120]
[321426579,1712182302000,-1058.87,0.00055068,120]
[321426580,1712182302010,-500.0,0.00055068,120]
[321426581,1712182302019,-1691.43,0.00055068,120]
[321426582,1712182302028,-500.0,0.00055068,120]
[321426583,1712182302038,-523.71125148,0.00055068,120]
[321426584,1712182302047,-520.77,0.00055068,120]
[321426585,1712182302056,-500.0,0.00055068,120]
[321426586,1712182302065,-649.8,0.00055068,120]
[321426587,1712182302075,-580.93,0.00055068,120]
[321426588,1712182302084,-880.91,0.00055068,120]
[321426589,1712182302094,-1053.04,0.00055068,120]
[321426590,1712182302103,-500.0,0.00055068,120]
[321426591,1712182302112,-500.0,0.00055068,120]
[321426592,1712182302122,-1494.41,0.00055068,120]
[321426593,1712182302131,-1559.55,0.00055068,120]
[321426594,1712182302140,-1338.73,0.00055068,120]
[321426595,1712182302149,-500.0,0.00055068,120]
[321426596,1712182302158,-715.45,0.00055068,120]
[321426597,1712182302168,-500.0,0.00055068,120]
[321426598,1712182302177,-1868.47,0.00055068,120]
[321426599,1712182302186,-500.0,0.00055068,120]
[321426600,1712182302196,-527.73850559,0.00055068,120]
[321426601,1712182302205,-500.0,0.00055068,120]
[321426602,1712182302214,-1711.74,0.00055068,120]
[321426603,1712182302224,-510.05363765,0.00055068,120]
[321426604,1712182302233,-776.16,0.00055068,120]
[321426605,1712182302242,-558.23,0.00055068,120]
[321426606,1712182302252,-500.0,0.00055068,120]
[321426607,1712182302262,-1058.42,0.00055068,120]
[321426608,1712182302271,-500.0,0.00055068,120]
[321426609,1712182302280,-1270.06,0.00055068,120]
[321426610,1712182302289,-2171.28,0.00055068,120]
[321426611,1712182302298,-516.97909885,0.00055068,60]
[321426612,1712182302307,-500.0,0.00055068,120]
[321426613,1712182302317,-586.43,0.00055068,120]
[321426614,1712182302326,-500.0,0.00055068,120]
[321426615,1712182302335,-500.0,0.00055068,2]
[321426616,1712182302344,-500.0,0.00055068,120]
[321426617,1712182302354,-500.0,0.00055068,120]
[321426618,1712182302363,-500.0,0.00055068,120]
[321426619,1712182302372,-500.0,0.00055068,120]
[321426620,1712182302381,-500.0,0.00055068,120]
[321426621,1712182302390,-500.0,0.00055068,120]
[321426622,1712182302399,-525.4561617,0.00055068,120]
[321426623,1712182302408,-500.0,0.00055068,120]
[321426624,1712182302418,-500.0,0.00055068,120]
[321426625,1712182302427,-970.61,0.00055068,120]
[321426626,1712182302437,-562.39,0.00055068,120]
[321426627,1712182302447,-512.50681077,0.00055068,120]
[321426628,1712182302457,-509.58466675,0.00055068,120]
[321426629,1712182302466,-500.0,0.00055068,120]
[321426630,1712182302476,-556.95,0.00055068,120]
[321426631,1712182302485,-500.0,0.00055068,120]
[321426632,1712182302494,-500.0,0.00055068,120]
[321426633,1712182302503,-500.0,0.00055068,120]
[321426634,1712182302512,-517.56,0.00055068,120]
[321426635,1712182302522,-518.58663951,0.00055068,120]
[321426636,1712182302531,-1175.94,0.00055068,120]
[321426637,1712182302539,-1753.92,0.00055068,120]
[321426638,1712182302549,-516.96321479,0.00055068,120]
[321426639,1712182302558,-500.0,0.00055068,120]
[321426640,1712182302568,-500.0,0.00055068,120]
[321426641,1712182302577,-593.44,0.00055068,120]
[321426642,1712182302586,-500.0,0.00055068,120]
[321426643,1712182302596,-892.45,0.00055068,120]
[321426644,1712182302607,-500.0,0.00055068,120]
[321426645,1712182302616,-500.0,0.00055068,120]
[321426646,1712182302627,-407.46717886,0.00055068,120]
[321426647,1712182302637,-638.32,0.00055068,120]
[321426648,1712182302647,-1374.06,0.00055068,120]
[321426649,1712182302656,-509.42136009,0.00055068,120]
[321426650,1712182302666,-500.0,0.00055068,120]
[321426651,1712182302676,-500.0,0.00055068,120]
[321426652,1712182302687,-925.28,0.00055068,120]
[321426653,1712182302697,-500.0,0.00055068,120]
[321426654,1712182302707,-653.27,0.00055068,120]
[321426655,1712182302717,-500.0,0.00055068,120]
[321426656,1712182302727,-507.17787153,0.00055068,120]
[321426657,1712182302736,-500.0,0.00055068,120]
[321426658,1712182302746,-843.85,0.00055068,120]
[321426659,1712182302756,-500.0,0.00055068,120]
[321426660,1712182302766,-531.05227138,0.00055068,120]
[321426661,1712182302775,-1248.45,0.00055068,120]
[321426662,1712182302785,-500.0,0.00055068,120]
[321426663,1712182302795,-510.27,0.00055068,120]
[321426664,1712182302804,-517.35786485,0.00055068,120]
[321426665,1712182302814,-500.0,0.00055068,120]
[321426666,1712182302823,-500.0,0.00055068,120]
[321426667,1712182302834,-564.29,0.00055068,120]
[321426668,1712182302843,-500.0,0.00055068,120]
[321426669,1712182302853,-500.0,0.00055068,120]
[321426670,1712182302862,-613.92,0.00055068,120]
[321426671,1712182302872,-500.0,0.00055068,120]
[321426672,1712182302881,-831.31,0.00055068,120]
[321426673,1712182302891,-500.0,0.00055068,120]
[321426674,1712182302900,-500.0,0.00055068,120]
[321426675,1712182302910,-500.0,0.00055068,120]
[321426676,1712182302920,-1528.39,0.00055068,120]
[321426677,1712182302929,-500.0,0.00055068,120]
[321426678,1712182302938,-820.25,0.00055068,120]
[321426679,1712182302949,-500.0,0.00055068,120]
[321426680,1712182302958,-500.0,0.00055068,120]
[321426681,1712182302968,-675.22,0.00055068,120]
[321426682,1712182302977,-500.0,0.00055068,120]
[321426683,1712182302987,-500.0,0.00055068,120]
[321426684,1712182302996,-530.63469452,0.00055068,120]
[321426685,1712182303006,-500.0,0.00055068,2]
[321426686,1712182303016,-808.59,0.00055068,120]
[321426687,1712182303025,-500.0,0.00055068,120]
[321426688,1712182303034,-500.0,0.00055068,120]
[321426689,1712182303044,-1000.0,0.00055068,120]
[321426690,1712182303053,-1387.24,0.00055068,120]
[321426691,1712182303063,-500.0,0.00055068,120]
[321426692,1712182303072,-500.0,0.00055068,120]
[321426693,1712182303082,-504.16728703,0.00055068,120]
[321426694,1712182303092,-510.09631187,0.00055068,120]
[321426695,1712182303102,-531.01,0.00055068,120]
[321426696,1712182303111,-1078.58,0.00055068,120]
[321426697,1712182303121,-500.0,0.00055068,120]
[321426698,1712182303131,-500.0,0.00055068,120]
[321426699,1712182303141,-500.0,0.00055068,120]
[321426700,1712182303150,-1259.94,0.00055068,120]
[321426701,1712182303160,-500.0,0.00055068,120]
[321426702,1712182303169,-500.0,0.00055068,120]
[321426703,1712182303179,-500.0,0.00055068,120]
[321426704,1712182303189,-545.48471126,0.00055068,120]
[321426705,1712182303199,-500.0,0.00055068,120]
[321426706,1712182303211,-500.0,0.00055068,120]
[321426707,1712182303221,-1117.67,0.00055068,30]
[321426708,1712182303230,-1170.92,0.00055068,120]
[321426709,1712182303240,-631.43,0.00055068,120]
[321426710,1712182303250,-670.32,0.00055068,120]
[321426711,1712182303260,-500.0,0.00055068,120]
[321426712,1712182303270,-532.18,0.00055068,120]
[321426713,1712182303280,-500.0,0.00055068,120]
[321426714,1712182303290,-500.0,0.00055068,120]
[321426715,1712182303299,-1112.56,0.00055068,120]
[321426716,1712182303309,-529.46754812,0.00055068,120]
[321426717,1712182303319,-531.23,0.00055068,120]
[321426718,1712182303328,-500.0,0.00055068,120]
[321426719,1712182303338,-500.0,0.00055068,120]
[321426720,1712182303347,-1288.29,0.00055068,120]
[321426721,1712182303357,-559.19,0.00055068,120]
[321426722,1712182303367,-545.2194693,0.00055068,120]
[321426723,1712182303378,-1079.11,0.00055068,120]
[321426724,1712182303387,-500.0,0.00055068,120]
[321426725,1712182303397,-500.0,0.00055068,120]
[321426726,1712182303406,-509.09584543,0.00055068,120]
[321426727,1712182303416,-500.0,0.00055068,120]
[321426728,1712182303426,-1135.01,0.00055068,120]
[321426729,1712182303436,-500.0,0.00055068,120]
[321426730,1712182303446,-500.0,0.00055068,120]
[321426731,1712182303457,-501.02519203,0.00055068,120]
[321426732,1712182303467,-1543.8,0.00055068,120]
[321426733,1712182303477,-1677.54,0.00055068,120]
[321426734,1712182303488,-500.0,0.00055068,120]
[321426735,1712182303498,-500.0,0.00055068,120]
[321426736,1712182303508,-500.0,0.00055068,120]
[321426737,1712182303518,-516.59275974,0.00055068,120]
[321426738,1712182303528,-526.78240769,0.00055068,120]
[321426739,1712182303538,-500.0,0.00055068,120]
[321426740,1712182303548,-654.19,0.00055068,120]
[321426741,1712182303557,-500.0,0.00055068,120]
[321426742,1712182303567,-888.0,0.00055068,120]
[321426743,1712182303577,-555.42,0.00055068,120]
[321426744,1712182303587,-573.7917757,0.00055068,120]
[321426745,1712182303597,-512.20716078,0.00055068,120]
[321426746,1712182303609,-500.0,0.00055068,120]
[321426747,1712182303619,-500.0,0.00055068,120]
[321426748,1712182303629,-1012.65,0.00055068,120]
[321426749,1712182303639,-500.0,0.00055068,120]
[321426750,1712182303649,-536.99,0.00055068,120]
[321426751,1712182303658,-1149.21,0.00055068,120]
[321426752,1712182303668,-500.0,0.00055068,120]
[321426753,1712182303679,-500.0,0.00055068,120]
[321426754,1712182303688,-1227.92,0.00055068,120]
[321426755,1712182303699,-1196.34,0.00055068,120]
[321426756,1712182303708,-500.0,0.00055068,120]
[321426757,1712182303718,-718.8,0.00055068,120]
[321426758,1712182303727,-500.0,0.00055068,120]
[321426759,1712182303737,-500.0,0.00055068,120]
[321426760,1712182303746,-500.0,0.00055068,120]
[321426761,1712182303756,-831.64,0.00055068,120]
[321426762,1712182303766,-1179.39,0.00055068,120]
[321426763,1712182303776,-500.0,0.00055068,120]
[321426764,1712182303785,-500.0,0.00055068,120]
[321426765,1712182303795,-529.4324248,0.00055068,120]
[321426766,1712182303806,-500.0,0.00055068,120]
[321426767,1712182303815,-1166.52,0.00055068,120]
[321426768,1712182303825,-500.0,0.00055068,120]
[321426769,1712182303835,-150.0,0.00055068,120]
[321426770,1712182303845,-690.37,0.00055068,120]
[321426771,1712182303855,-528.01927356,0.00055068,120]
[321426772,1712182303864,-500.0,0.00055068,120]
[321426773,1712182303875,-500.0,0.00055068,120]
[321426774,1712182303885,-518.68860114,0.00055068,120]
[321426775,1712182303895,-500.0,0.00055068,120]
[321426776,1712182303905,-510.50689306,0.00055068,120]
[321426777,1712182303915,-1258.58,0.00055068,120]
[321426778,1712182303925,-519.4372683,0.00055068,120]
[321426779,1712182303935,-906.33,0.00055068,120]
[321426780,1712182303945,-499.87416436,0.00055068,120]
[321426781,1712182303955,-500.0,0.00055068,120]
[321426782,1712182303965,-509.96889614,0.00055068,120]
[321426783,1712182303975,-176.87542393,0.00055068,120]
[321426784,1712182303985,-500.0,0.00055068,120]
[321426785,1712182303995,-500.0,0.00055068,120]
[321426786,1712182304005,-500.0,0.00055068,120]
[321426787,1712182304016,-500.0,0.00055068,120]
[321426788,1712182304026,-1009.09,0.00055068,60]
[321426789,1712182304037,-500.0,0.00055068,120]
[321426790,1712182304046,-500.0,0.00055068,120]
[321426791,1712182304057,-322.29491923,0.00055068,120]
[321426792,1712182304066,-989.68,0.00055068,120]
[321426793,1712182304077,-1515.14,0.00055068,120]
[321426794,1712182304086,-500.0,0.00055068,120]
[321426795,1712182304097,-1000.0,0.00055068,120]
[321426796,1712182304108,-500.0,0.00055068,120]
[321426797,1712182304118,-1077.9,0.00055068,120]
[321426798,1712182304130,-500.0,0.00055068,120]
[321426799,1712182304139,-500.0,0.00055068,120]
[321426800,1712182304151,-1326.32,0.00055068,120]
[321426801,1712182304162,-549.12,0.00055068,120]
[321426802,1712182304172,-500.0,0.00055068,120]
[321426803,1712182304182,-500.0,0.00055068,120]
[321426804,1712182304192,-876.14,0.00055068,120]
[321426805,1712182304202,-500.0,0.00055068,120]
[321426806,1712182304212,-1554.15,0.00055068,120]
[321426807,1712182304221,-500.0,0.00055068,120]
[321426808,1712182304232,-507.76883994,0.00055068,120]
[321426809,1712182304242,-500.0,0.00055068,120]
[321426810,1712182304251,-534.80857053,0.00055068,120]
[321426811,1712182304261,-506.53965657,0.00055068,120]
[321426812,1712182304273,-500.0,0.00055068,120]
[321426813,1712182304283,-500.0,0.00055068,120]
[321426814,1712182304294,-500.0,0.00055068,120]
[321426815,1712182304304,-1275.42,0.00055068,120]
[321426816,1712182304314,-799.11,0.00055068,120]
[321426817,1712182304324,-500.0,0.00055068,120]
[321426818,1712182304334,-500.0,0.00055068,120]
[321426819,1712182304344,-672.33,0.00055068,120]
[321426820,1712182304354,-506.79840691,0.00055068,120]
[321426821,1712182304364,-514.30272462,0.00055068,120]
[321426822,1712182304373,-500.0,0.00055068,120]
[321426823,1712182304383,-532.69301225,0.00055068,120]
[321426824,1712182304393,-799.72,0.00055068,120]
[321426825,1712182304403,-500.0,0.00055068,120]
[321426826,1712182304414,-857.91,0.00055068,120]
[321426827,1712182304423,-926.27,0.00055068,120]
[321426828,1712182304433,-500.0,0.00055068,120]
[321426829,1712182304443,-500.0,0.00055068,120]
[321426830,1712182304453,-500.0,0.00055068,120]
[321426831,1712182304462,-500.0,0.00055068,120]
[321426832,1712182304472,-1209.59,0.00055068,120]
[321426833,1712182304481,-500.0,0.00055068,120]
[321426834,1712182304491,-500.0,0.00055068,120]
[321426835,1712182304501,-500.0,0.00055068,120]
[321426836,1712182304511,-500.0,0.00055068,120]
[321426837,1712182304521,-507.23761276,0.00055068,120]
[321426838,1712182304531,-500.0,0.00055068,120]
[321426839,1712182304541,-500.0,0.00055068,120]
[321426840,1712182304551,-500.0,0.00055068,120]
[321426841,1712182304561,-500.0,0.00055068,120]
[321426842,1712182304570,-559.74,0.00055068,120]
[321426843,1712182304580,-512.16,0.00055068,120]
[321426844,1712182304590,-386.10521963,0.00055068,120]
[321426845,1712182304603,-500.0,0.00055068,120]
[321426846,1712182304613,-500.0,0.00055068,120]
[321426847,1712182304622,-500.0,0.00055068,120]
[321426848,1712182304632,-1066.29,0.00055068,120]
[321426849,1712182304642,-500.0,0.00055068,120]
[321426850,1712182304652,-518.42185586,0.00055068,120]
[321426851,1712182304662,-946.54,0.00055068,120]
[321426852,1712182304672,-500.0,0.00055068,120]
[321426853,1712182304682,-936.38,0.00055068,120]
[321426854,1712182304692,-500.0,0.00055068,120]
[321426855,1712182304702,-500.0,0.00055068,120]
[321426856,1712182304712,-781.02,0.00055068,120]
[321426857,1712182304722,-500.0,0.00055068,120]
[321426858,1712182304731,-890.32,0.00055068,120]
[321426859,1712182304741,-500.0,0.00055068,120]
[321426860,1712182304751,-500.0,0.00055068,120]
[321426861,1712182304760,-500.0,0.00055068,120]
[321426862,1712182304770,-500.0,0.00055068,120]
[321426863,1712182304780,-500.0,0.00055068,120]
[321426864,1712182305002,-1291.22,0.00055068,120]
[321426865,1712182305015,-500.0,0.00055068,120]
[321426866,1712182305024,-638.4,0.00055068,120]
[321426867,1712182305033,-500.0,0.00055068,120]
[321426868,1712182305042,-218.53736046,0.00055068,120]
[321426869,1712182305052,-509.62182537,0.00055068,120]
[321426870,1712182305061,-500.0,0.00055068,120]
[321426871,1712182305070,-500.0,0.00055068,120]
[321426872,1712182305079,-500.0,0.00055068,120]
[321426873,1712182305088,-500.0,0.00055068,120]
[321426874,1712182305098,-500.0,0.00055068,120]
[321426875,1712182305107,-592.34,0.00055068,120]
[321426876,1712182305116,-500.0,0.00055068,120]
[321426877,1712182305126,-755.9,0.00055068,120]
[321426878,1712182305136,-10389.32,0.00055068,120]
[321426879,1712182305145,-500.0,0.00055068,120]
[321426880,1712182305155,-529.86620064,0.00055068,120]
[321426881,1712182305165,-500.0,0.00055068,120]
[321426882,1712182305175,-643.86,0.00055068,120]
[321426883,1712182305184,-645.32,0.00055068,120]
[321426884,1712182305196,-587.31,0.00055068,120]
[321426885,1712182305206,-500.0,0.00055068,120]
[321426886,1712182305216,-500.0,0.00055068,120]
[321426887,1712182305225,-500.0,0.00055068,120]
[321426888,1712182305235,-1073.35,0.00055068,120]
[321426889,1712182305247,-8464.65,0.00055068,120]
[321426890,1712182305257,-500.0,0.00055068,120]
[321426891,1712182305268,-500.0,0.00055068,120]
[321426892,1712182305277,-500.0,0.00055068,120]
[321426893,1712182305287,-792.67,0.00055068,120]